[Event "Titled Tuesday Blitz April 19 Early 2022"]
[White "Matlakov, Maxim"]
[Black "Pakleza, Zbigniew"]
[WhiteFideId "4168003"]
[BlackFideId "1119290"]
[WhiteElo "2669"]
[BlackElo "2467"]
[Result "1-0"]
[Round "08"]
[TimeControl "180+1"]
[Date "2022.04.19"]
[WhiteClock "0:00:45"]
[BlackClock "0:00:09"]

1. e4 {[%clk 0:03:00]}  d6 {[%clk 0:03:00]} 2. d4 {[%clk 0:02:59]}  Nf6 {[%clk 0:03:00]} 3. Nc3 {[%clk 0:03:00]}  c6 {[%clk 0:03:00]} 4. f4 {[%clk 0:02:59]}  Qb6 {[%clk 0:03:00]} 5. Nf3 {[%clk 0:02:58]}  Bg4 {[%clk 0:03:00]} 6. Be2 {[%clk 0:02:57]}  Bxf3 {[%clk 0:03:00]} 7. Bxf3 {[%clk 0:02:57]}  e5 {[%clk 0:03:00]} 8. Be3 {[%clk 0:02:40]}  Qxb2 {[%clk 0:02:55]} 9. Kd2 {[%clk 0:02:39]}  Qa3 {[%clk 0:02:47]} 10. Qb1 {[%clk 0:02:33]}  b6 {[%clk 0:02:24]} 11. Qb3 {[%clk 0:02:26]}  Qa5 {[%clk 0:02:24]} 12. g4 {[%clk 0:02:16]}  h6 {[%clk 0:02:11]} 13. h4 {[%clk 0:02:14]}  Nbd7 {[%clk 0:01:50]} 14. g5 {[%clk 0:02:11]}  Ng8 {[%clk 0:01:46]} 15. Qc4 {[%clk 0:01:55]}  Ne7 {[%clk 0:01:38]} 16. fxe5 {[%clk 0:01:50]}  dxe5 {[%clk 0:01:37]} 17. Bg4 {[%clk 0:01:50]}  exd4 {[%clk 0:01:23]} 18. Bxd4 {[%clk 0:01:30]}  O-O-O {[%clk 0:01:19]} 19. Ke2 {[%clk 0:01:14]}  hxg5 {[%clk 0:01:16]} 20. a4 {[%clk 0:01:00]}  Kb7 {[%clk 0:00:55]} 21. Nb5 {[%clk 0:01:00]}  Nf6 {[%clk 0:00:50]} 22. Bc3 {[%clk 0:00:54]}  cxb5 {[%clk 0:00:26]} 23. axb5 {[%clk 0:00:55]}  Qxa1 {[%clk 0:00:24]} 24. Rxa1 {[%clk 0:00:52]}  Nxg4 {[%clk 0:00:25]} 25. Rxa7+ {[%clk 0:00:49]}  Kxa7 {[%clk 0:00:21]} 26. Qc7+ {[%clk 0:00:50]}  Ka8 {[%clk 0:00:22]} 27. Qxd8+ {[%clk 0:00:50]}  Kb7 {[%clk 0:00:20]} 28. Qd7+ {[%clk 0:00:48]}  Kb8 {[%clk 0:00:18]} 29. Qxg4 {[%clk 0:00:47]}  gxh4 {[%clk 0:00:19]} 30. Be5+ {[%clk 0:00:47]}  Ka8 {[%clk 0:00:15]} 31. Qd7 {[%clk 0:00:46]}  Ng6 {[%clk 0:00:09]} 32. Qc8+ {[%clk 0:00:45]}  Ka7 {[%clk 0:00:09]} 33. Qb8# {[%clk 0:00:45]} 1-0


[Site "https://www.chess.com"]

[Event "Titled Tuesday Blitz April 19 Early 2022"]
[White "Melikhov, Evgeny V."]
[Black "Rodchenkov, Vitaly"]
[WhiteFideId "4122046"]
[BlackFideId "4152964"]
[WhiteElo "1931"]
[BlackElo "2337"]
[Result "1-0"]
[Round "08"]
[TimeControl "180+1"]
[Date "2022.04.19"]
[WhiteClock "0:00:04"]
[BlackClock "0:00:11"]

1. d4 {[%clk 0:02:48]}  Nf6 {[%clk 0:02:59]} 2. c4 {[%clk 0:02:47]}  e6 {[%clk 0:03:00]} 3. Nc3 {[%clk 0:02:47]}  Bb4 {[%clk 0:03:00]} 4. Qc2 {[%clk 0:02:47]}  c5 {[%clk 0:02:59]} 5. dxc5 {[%clk 0:02:47]}  Nc6 {[%clk 0:02:58]} 6. a3 {[%clk 0:02:46]}  Bxc5 {[%clk 0:02:58]} 7. Nf3 {[%clk 0:02:46]}  O-O {[%clk 0:02:57]} 8. e3 {[%clk 0:02:45]}  b6 {[%clk 0:02:57]} 9. Be2 {[%clk 0:02:44]}  Bb7 {[%clk 0:02:57]} 10. b3 {[%clk 0:02:43]}  Qc7 {[%clk 0:02:55]} 11. Bb2 {[%clk 0:02:42]}  Be7 {[%clk 0:02:55]} 12. g4 {[%clk 0:02:40]}  Rfd8 {[%clk 0:02:46]} 13. g5 {[%clk 0:02:38]}  Ne8 {[%clk 0:02:43]} 14. Rg1 {[%clk 0:02:36]}  g6 {[%clk 0:02:43]} 15. Ne4 {[%clk 0:02:19]}  d5 {[%clk 0:02:33]} 16. cxd5 {[%clk 0:01:54]}  Rxd5 {[%clk 0:02:28]} 17. Qc3 {[%clk 0:01:45]}  Ne5 {[%clk 0:02:23]} 18. Nxe5 {[%clk 0:01:33]}  Qxc3+ {[%clk 0:02:19]} 19. Bxc3 {[%clk 0:01:32]}  Rxe5 {[%clk 0:02:19]} 20. Bxe5 {[%clk 0:01:28]}  Bxe4 {[%clk 0:02:18]} 21. b4 {[%clk 0:01:17]}  Rc8 {[%clk 0:02:18]} 22. Kd2 {[%clk 0:01:11]}  Nd6 {[%clk 0:02:17]} 23. Rgc1 {[%clk 0:01:03]}  Rd8 {[%clk 0:02:17]} 24. Bf6 {[%clk 0:00:52]}  Ne8+ {[%clk 0:02:02]} 25. Ke1 {[%clk 0:00:51]}  Nxf6 {[%clk 0:01:57]} 26. gxf6 {[%clk 0:00:50]}  Bxf6 {[%clk 0:01:57]} 27. Ra2 {[%clk 0:00:50]}  Bd5 {[%clk 0:01:52]} 28. Rd2 {[%clk 0:00:49]}  Re8 {[%clk 0:01:45]} 29. Bb5 {[%clk 0:00:45]}  Rb8 {[%clk 0:01:41]} 30. Rc7 {[%clk 0:00:32]}  a5 {[%clk 0:01:37]} 31. Ke2 {[%clk 0:00:29]}  Be5 {[%clk 0:01:36]} 32. Ra7 {[%clk 0:00:24]}  axb4 {[%clk 0:01:32]} 33. axb4 {[%clk 0:00:24]}  Bxh2 {[%clk 0:01:27]} 34. f3 {[%clk 0:00:20]}  Rf8 {[%clk 0:00:56]} 35. e4 {[%clk 0:00:20]}  Ba8 {[%clk 0:00:47]} 36. Rad7 {[%clk 0:00:17]}  Kg7 {[%clk 0:00:41]} 37. Rd8 {[%clk 0:00:17]}  Bb7 {[%clk 0:00:37]} 38. Rxf8 {[%clk 0:00:15]}  Kxf8 {[%clk 0:00:37]} 39. Rd7 {[%clk 0:00:15]}  Bxe4 {[%clk 0:00:24]} 40. fxe4 {[%clk 0:00:14]}  Bg1 {[%clk 0:00:24]} 41. Kf3 {[%clk 0:00:12]}  Kg7 {[%clk 0:00:22]} 42. e5 {[%clk 0:00:12]}  h5 {[%clk 0:00:21]} 43. Rb7 {[%clk 0:00:10]}  g5 {[%clk 0:00:20]} 44. Be8 {[%clk 0:00:10]}  g4+ {[%clk 0:00:19]} 45. Kf4 {[%clk 0:00:09]}  Bh2+ {[%clk 0:00:19]} 46. Kg5 {[%clk 0:00:07]}  g3 {[%clk 0:00:19]} 47. Rxf7+ {[%clk 0:00:06]}  Kg8 {[%clk 0:00:19]} 48. Kf6 {[%clk 0:00:04]}  g2 {[%clk 0:00:19]} 49. Rg7+ {[%clk 0:00:04]}  Kh8 {[%clk 0:00:19]} 50. Rxg2 {[%clk 0:00:04]}  Bf4 {[%clk 0:00:17]} 51. Bg6 {[%clk 0:00:03]}  h4 {[%clk 0:00:17]} 52. Rc2 {[%clk 0:00:04]}  Bg5+ {[%clk 0:00:13]} 53. Kxg5 {[%clk 0:00:04]}  Kg7 {[%clk 0:00:13]} 54. Rc7+ {[%clk 0:00:03]}  Kf8 {[%clk 0:00:13]} 55. Kf6 {[%clk 0:00:04]}  Kg8 {[%clk 0:00:11]} 56. Rc8# {[%clk 0:00:04]} 1-0


[Site "https://www.chess.com"]

[Event "Titled Tuesday Blitz April 19 Early 2022"]
[White "Mitrabha, Guha"]
[Black "Indjic, Aleksandar"]
[WhiteFideId "5057000"]
[BlackFideId "911925"]
[WhiteElo "2468"]
[BlackElo "2616"]
[Result "0-1"]
[Round "08"]
[TimeControl "180+1"]
[Date "2022.04.19"]
[WhiteClock "0:00:33"]
[BlackClock "0:01:17"]

1. d4 {[%clk 0:02:34]}  Nf6 {[%clk 0:02:58]} 2. Nf3 {[%clk 0:02:33]}  e6 {[%clk 0:02:58]} 3. Bf4 {[%clk 0:02:32]}  c5 {[%clk 0:02:58]} 4. e3 {[%clk 0:02:33]}  cxd4 {[%clk 0:02:59]} 5. exd4 {[%clk 0:02:33]}  b6 {[%clk 0:02:59]} 6. Nbd2 {[%clk 0:02:32]}  Ba6 {[%clk 0:02:59]} 7. c4 {[%clk 0:02:24]}  Be7 {[%clk 0:02:57]} 8. Rc1 {[%clk 0:02:20]}  O-O {[%clk 0:02:57]} 9. a3 {[%clk 0:02:18]}  d5 {[%clk 0:02:53]} 10. c5 {[%clk 0:02:11]}  Bxf1 {[%clk 0:02:53]} 11. Nxf1 {[%clk 0:02:11]}  bxc5 {[%clk 0:02:52]} 12. dxc5 {[%clk 0:02:11]}  a5 {[%clk 0:02:43]} 13. b4 {[%clk 0:02:02]}  axb4 {[%clk 0:02:43]} 14. axb4 {[%clk 0:02:02]}  Na6 {[%clk 0:02:43]} 15. Rb1 {[%clk 0:01:48]}  Ne4 {[%clk 0:02:41]} 16. Be5 {[%clk 0:01:39]}  f6 {[%clk 0:02:35]} 17. Ba1 {[%clk 0:01:37]}  Nxb4 {[%clk 0:02:33]} 18. Ne3 {[%clk 0:01:23]}  Bxc5 {[%clk 0:02:25]} 19. O-O {[%clk 0:01:22]}  Bxe3 {[%clk 0:02:16]} 20. fxe3 {[%clk 0:01:21]}  Nc6 {[%clk 0:02:16]} 21. Qc2 {[%clk 0:01:19]}  Ne7 {[%clk 0:02:01]} 22. Nd4 {[%clk 0:01:18]}  Qd6 {[%clk 0:01:58]} 23. Rb7 {[%clk 0:01:16]}  Rfc8 {[%clk 0:01:51]} 24. Qb2 {[%clk 0:01:07]}  e5 {[%clk 0:01:39]} 25. Nb5 {[%clk 0:01:04]}  Qc5 {[%clk 0:01:39]} 26. Kh1 {[%clk 0:00:55]}  Rab8 {[%clk 0:01:30]} 27. Na7 {[%clk 0:00:45]}  Rxb7 {[%clk 0:01:28]} 28. Qxb7 {[%clk 0:00:46]}  Rc7 {[%clk 0:01:26]} 29. Qb8+ {[%clk 0:00:44]}  Kf7 {[%clk 0:01:26]} 30. Nb5 {[%clk 0:00:44]}  Rc8 {[%clk 0:01:26]} 31. Qb7 {[%clk 0:00:35]}  Qxe3 {[%clk 0:01:22]} 32. g3 {[%clk 0:00:33]}  Rc1 {[%clk 0:01:17]} 0-1


[Site "https://www.chess.com"]

[Event "Titled Tuesday Blitz April 19 Early 2022"]
[White "Mokshanov, Alexey"]
[Black "Gracia Alvarez, Gerardo Antonio"]
[WhiteFideId "24121657"]
[BlackFideId "5109124"]
[WhiteElo "2141"]
[BlackElo "2139"]
[Result "1/2-1/2"]
[Round "08"]
[TimeControl "180+1"]
[Date "2022.04.19"]
[WhiteClock "0:00:20"]
[BlackClock "0:00:04"]

1. e4 {[%clk 0:03:00]}  c5 {[%clk 0:03:00]} 2. Nf3 {[%clk 0:03:00]}  Nc6 {[%clk 0:03:00]} 3. Bb5 {[%clk 0:03:00]}  d6 {[%clk 0:03:01]} 4. Bxc6+ {[%clk 0:02:59]}  bxc6 {[%clk 0:03:01]} 5. O-O {[%clk 0:03:00]}  e5 {[%clk 0:03:01]} 6. c3 {[%clk 0:03:00]}  f5 {[%clk 0:03:01]} 7. exf5 {[%clk 0:03:00]}  Bxf5 {[%clk 0:02:56]} 8. d4 {[%clk 0:03:00]}  cxd4 {[%clk 0:02:39]} 9. cxd4 {[%clk 0:03:00]}  e4 {[%clk 0:02:39]} 10. Qc2 {[%clk 0:02:34]}  Qd7 {[%clk 0:02:36]} 11. Nh4 {[%clk 0:02:33]}  Rc8 {[%clk 0:02:29]} 12. f3 {[%clk 0:02:21]}  Nf6 {[%clk 0:02:22]} 13. Nxf5 {[%clk 0:02:21]}  Qxf5 {[%clk 0:02:21]} 14. fxe4 {[%clk 0:02:21]}  Qxe4 {[%clk 0:02:20]} 15. Qd1 {[%clk 0:02:01]}  Be7 {[%clk 0:02:16]} 16. Nc3 {[%clk 0:02:00]}  Qg6 {[%clk 0:02:15]} 17. Re1 {[%clk 0:02:00]}  Rc7 {[%clk 0:02:02]} 18. Bf4 {[%clk 0:02:00]}  O-O {[%clk 0:02:00]} 19. Rxe7 {[%clk 0:02:00]}  Rxe7 {[%clk 0:01:59]} 20. Bxd6 {[%clk 0:02:01]}  Rfe8 {[%clk 0:01:12]} 21. Bxe7 {[%clk 0:02:00]}  Rxe7 {[%clk 0:01:13]} 22. Qf3 {[%clk 0:01:59]}  Ng4 {[%clk 0:01:04]} 23. Rf1 {[%clk 0:01:53]}  Rf7 {[%clk 0:01:04]} 24. Qxf7+ {[%clk 0:01:48]}  Qxf7 {[%clk 0:01:05]} 25. Rxf7 {[%clk 0:01:48]}  Kxf7 {[%clk 0:01:06]} 26. h3 {[%clk 0:01:43]}  Ne3 {[%clk 0:01:06]} 27. Kf2 {[%clk 0:01:42]}  Nc2 {[%clk 0:01:07]} 28. d5 {[%clk 0:01:41]}  cxd5 {[%clk 0:01:06]} 29. Nxd5 {[%clk 0:01:41]}  Ke6 {[%clk 0:01:04]} 30. Nc3 {[%clk 0:01:33]}  Ke5 {[%clk 0:01:01]} 31. Ke2 {[%clk 0:01:30]}  Kf4 {[%clk 0:00:59]} 32. Kf2 {[%clk 0:01:22]}  Nb4 {[%clk 0:00:56]} 33. g3+ {[%clk 0:01:22]}  Ke5 {[%clk 0:00:55]} 34. Ke3 {[%clk 0:01:23]}  h5 {[%clk 0:00:52]} 35. a3 {[%clk 0:01:21]}  Nc6 {[%clk 0:00:49]} 36. Ne2 {[%clk 0:01:18]}  g5 {[%clk 0:00:48]} 37. b4 {[%clk 0:01:17]}  Ne7 {[%clk 0:00:45]} 38. Nd4 {[%clk 0:01:13]}  Kd5 {[%clk 0:00:30]} 39. Kd3 {[%clk 0:01:07]}  Ng6 {[%clk 0:00:27]} 40. Nb5 {[%clk 0:01:00]}  h4 {[%clk 0:00:24]} 41. gxh4 {[%clk 0:01:00]}  gxh4 {[%clk 0:00:24]} 42. Nxa7 {[%clk 0:00:52]}  Nf4+ {[%clk 0:00:24]} 43. Ke3 {[%clk 0:00:43]}  Nxh3 {[%clk 0:00:25]} 44. Nb5 {[%clk 0:00:42]}  Ng5 {[%clk 0:00:21]} 45. Nc3+ {[%clk 0:00:30]}  Kc4 {[%clk 0:00:20]} 46. Ne2 {[%clk 0:00:29]}  Kb3 {[%clk 0:00:16]} 47. b5 {[%clk 0:00:27]}  Ne6 {[%clk 0:00:07]} 48. b6 {[%clk 0:00:27]}  Nc5 {[%clk 0:00:04]} 49. Kd4 {[%clk 0:00:26]}  Nb7 {[%clk 0:00:03]} 50. Kd5 {[%clk 0:00:25]}  Kxa3 {[%clk 0:00:04]} 51. Kc6 {[%clk 0:00:25]}  Na5+ {[%clk 0:00:04]} 52. Kb5 {[%clk 0:00:25]}  Nb7 {[%clk 0:00:04]} 53. Nf4 {[%clk 0:00:24]}  Kb3 {[%clk 0:00:03]} 54. Kc6 {[%clk 0:00:18]}  Na5+ {[%clk 0:00:03]} 55. Kb5 {[%clk 0:00:18]}  Nb7 {[%clk 0:00:04]} 56. Kc6 {[%clk 0:00:19]}  Na5+ {[%clk 0:00:04]} 57. Kb5 {[%clk 0:00:20]}  Nb7 {[%clk 0:00:04]} 1/2-1/2


[Site "https://www.chess.com"]

[Event "Titled Tuesday Blitz April 19 Early 2022"]
[White "Namitbir Singh Walia"]
[Black "Fernandez Hernandez, Gerardo"]
[WhiteFideId "35071068"]
[BlackFideId "2207400"]
[WhiteElo "1565"]
[BlackElo "2092"]
[Result "0-1"]
[Round "08"]
[TimeControl "180+1"]
[Date "2022.04.19"]
[WhiteClock "0:00:01"]
[BlackClock "0:00:02"]

1. d4 {[%clk 0:03:00]}  Nf6 {[%clk 0:02:59]} 2. c4 {[%clk 0:03:00]}  c5 {[%clk 0:02:59]} 3. d5 {[%clk 0:02:59]}  b5 {[%clk 0:02:59]} 4. cxb5 {[%clk 0:02:57]}  a6 {[%clk 0:02:59]} 5. bxa6 {[%clk 0:02:55]}  g6 {[%clk 0:02:57]} 6. Nc3 {[%clk 0:02:55]}  Bg7 {[%clk 0:02:57]} 7. e4 {[%clk 0:02:52]}  O-O {[%clk 0:02:57]} 8. Nf3 {[%clk 0:02:50]}  Qa5 {[%clk 0:02:53]} 9. Bd2 {[%clk 0:02:37]}  Bxa6 {[%clk 0:02:48]} 10. Bxa6 {[%clk 0:02:36]}  Qxa6 {[%clk 0:02:46]} 11. Qe2 {[%clk 0:02:34]}  e6 {[%clk 0:02:34]} 12. Qxa6 {[%clk 0:02:28]}  Nxa6 {[%clk 0:02:33]} 13. dxe6 {[%clk 0:02:24]}  fxe6 {[%clk 0:02:29]} 14. a3 {[%clk 0:02:09]}  d5 {[%clk 0:02:09]} 15. exd5 {[%clk 0:02:02]}  exd5 {[%clk 0:02:07]} 16. O-O-O {[%clk 0:01:56]}  d4 {[%clk 0:01:44]} 17. Nb5 {[%clk 0:01:35]}  Ne4 {[%clk 0:01:32]} 18. Rhf1 {[%clk 0:00:55]}  Rab8 {[%clk 0:01:13]} 19. a4 {[%clk 0:00:48]}  c4 {[%clk 0:00:48]} 20. Rde1 {[%clk 0:00:23]}  Nxd2 {[%clk 0:00:39]} 21. Kxd2 {[%clk 0:00:23]}  d3 {[%clk 0:00:32]} 22. Re4 {[%clk 0:00:19]}  Rbc8 {[%clk 0:00:20]} 23. Rc1 {[%clk 0:00:18]}  Bh6+ {[%clk 0:00:18]} 24. Kd1 {[%clk 0:00:17]}  Bxc1 {[%clk 0:00:17]} 25. Kxc1 {[%clk 0:00:18]}  Nc5 {[%clk 0:00:14]} 26. Re7 {[%clk 0:00:13]}  Nxa4 {[%clk 0:00:11]} 27. Nd6 {[%clk 0:00:09]}  Rb8 {[%clk 0:00:10]} 28. Nxc4 {[%clk 0:00:08]}  Rbc8 {[%clk 0:00:08]} 29. b3 {[%clk 0:00:07]}  Nc5 {[%clk 0:00:08]} 30. Kd1 {[%clk 0:00:06]}  Nxb3 {[%clk 0:00:08]} 31. Nfe5 {[%clk 0:00:05]}  Rxf2 {[%clk 0:00:07]} 32. Nxd3 {[%clk 0:00:02]}  Rf1+ {[%clk 0:00:04]} 33. Ke2 {[%clk 0:00:02]}  Rg1 {[%clk 0:00:04]} 34. Kf2 {[%clk 0:00:01]}  Rd1 {[%clk 0:00:03]} 35. Nce5 {[%clk 0:00:01]}  Rd2+ {[%clk 0:00:02]} 0-1


[Site "https://www.chess.com"]

[Event "Titled Tuesday Blitz April 19 Early 2022"]
[White "Nareks, Matic"]
[Black "Richter, Nils"]
[WhiteFideId "14629526"]
[BlackFideId "12990809"]
[WhiteElo "2147"]
[BlackElo "2243"]
[Result "0-1"]
[Round "08"]
[TimeControl "180+1"]
[Date "2022.04.19"]
[WhiteClock "0:01:31"]
[BlackClock "0:01:32"]

1. e4 {[%clk 0:03:00]}  e6 {[%clk 0:03:00]} 2. d4 {[%clk 0:03:00]}  d5 {[%clk 0:03:00]} 3. Nd2 {[%clk 0:02:59]}  c5 {[%clk 0:03:01]} 4. exd5 {[%clk 0:02:59]}  Qxd5 {[%clk 0:03:01]} 5. Ngf3 {[%clk 0:03:00]}  Nf6 {[%clk 0:03:00]} 6. Bc4 {[%clk 0:03:00]}  Qd6 {[%clk 0:02:59]} 7. Qe2 {[%clk 0:03:00]}  cxd4 {[%clk 0:02:58]} 8. Nb3 {[%clk 0:03:00]}  Nc6 {[%clk 0:02:57]} 9. Bg5 {[%clk 0:02:59]}  Be7 {[%clk 0:02:56]} 10. O-O-O {[%clk 0:02:59]}  h6 {[%clk 0:02:51]} 11. Bh4 {[%clk 0:02:57]}  O-O {[%clk 0:02:48]} 12. Kb1 {[%clk 0:02:57]}  e5 {[%clk 0:02:44]} 13. Bg3 {[%clk 0:02:57]}  Bg4 {[%clk 0:02:39]} 14. h3 {[%clk 0:02:40]}  Bh5 {[%clk 0:02:36]} 15. Qxe5 {[%clk 0:02:15]}  Nxe5 {[%clk 0:02:33]} 16. Bxe5 {[%clk 0:02:14]}  Qc6 {[%clk 0:02:28]} 17. Na5 {[%clk 0:02:10]}  Qc8 {[%clk 0:02:19]} 18. g4 {[%clk 0:02:09]}  Bg6 {[%clk 0:02:17]} 19. Nxd4 {[%clk 0:02:09]}  Bc5 {[%clk 0:02:12]} 20. Bb3 {[%clk 0:02:02]}  Re8 {[%clk 0:02:08]} 21. Bxf6 {[%clk 0:02:01]}  gxf6 {[%clk 0:02:08]} 22. f4 {[%clk 0:01:58]}  Be4 {[%clk 0:02:05]} 23. Rhf1 {[%clk 0:01:49]}  Bxd4 {[%clk 0:02:00]} 24. Rxd4 {[%clk 0:01:49]}  Qc5 {[%clk 0:02:01]} 25. Rd7 {[%clk 0:01:40]}  Qxa5 {[%clk 0:01:57]} 26. Rxf7 {[%clk 0:01:38]}  Kh8 {[%clk 0:01:44]} 27. Rxf6 {[%clk 0:01:37]}  Rac8 {[%clk 0:01:37]} 28. g5 {[%clk 0:01:32]}  Bxc2+ {[%clk 0:01:32]} 29. Bxc2 {[%clk 0:01:31]}  Re1+ {[%clk 0:01:32]} 0-1


[Site "https://www.chess.com"]

[Event "Titled Tuesday Blitz April 19 Early 2022"]
[White "Nguyen, Hong Anh"]
[Black "De Arruda, Leandro Formes"]
[WhiteFideId "12406732"]
[BlackFideId "22722009"]
[WhiteElo "2016"]
[BlackElo "1852"]
[Result "1-0"]
[Round "08"]
[TimeControl "180+1"]
[Date "2022.04.19"]
[WhiteClock "0:01:15"]
[BlackClock "0:00:04"]

1. d4 {[%clk 0:02:59]}  e6 {[%clk 0:03:00]} 2. Nf3 {[%clk 0:02:59]}  d5 {[%clk 0:02:59]} 3. g3 {[%clk 0:03:00]}  Nf6 {[%clk 0:02:52]} 4. Bg2 {[%clk 0:03:01]}  Be7 {[%clk 0:02:53]} 5. O-O {[%clk 0:03:01]}  O-O {[%clk 0:02:40]} 6. c4 {[%clk 0:03:01]}  c6 {[%clk 0:02:38]} 7. Qc2 {[%clk 0:03:01]}  Ne4 {[%clk 0:02:38]} 8. Nbd2 {[%clk 0:03:01]}  f5 {[%clk 0:02:38]} 9. Ne5 {[%clk 0:03:00]}  Nd7 {[%clk 0:02:38]} 10. Ndf3 {[%clk 0:03:00]}  Bf6 {[%clk 0:02:37]} 11. Bf4 {[%clk 0:02:59]}  Qe8 {[%clk 0:02:35]} 12. b4 {[%clk 0:02:56]}  Qh5 {[%clk 0:02:33]} 13. b5 {[%clk 0:02:55]}  Nxe5 {[%clk 0:02:27]} 14. dxe5 {[%clk 0:02:53]}  Be7 {[%clk 0:02:25]} 15. bxc6 {[%clk 0:02:51]}  bxc6 {[%clk 0:02:25]} 16. cxd5 {[%clk 0:02:51]}  cxd5 {[%clk 0:02:26]} 17. Qc6 {[%clk 0:02:45]}  Rb8 {[%clk 0:02:26]} 18. Nd4 {[%clk 0:02:44]}  Qf7 {[%clk 0:02:10]} 19. Rab1 {[%clk 0:02:40]}  Rxb1 {[%clk 0:02:05]} 20. Rxb1 {[%clk 0:02:41]}  Bc5 {[%clk 0:01:55]} 21. Be3 {[%clk 0:02:36]}  Bb6 {[%clk 0:01:52]} 22. a4 {[%clk 0:02:22]}  Bb7 {[%clk 0:01:47]} 23. Qxe6 {[%clk 0:02:20]}  Qxe6 {[%clk 0:01:37]} 24. Nxe6 {[%clk 0:02:21]}  Nc3 {[%clk 0:01:17]} 25. Rxb6 {[%clk 0:02:03]}  axb6 {[%clk 0:01:12]} 26. Nxf8 {[%clk 0:02:04]}  Kxf8 {[%clk 0:01:13]} 27. Bxb6 {[%clk 0:02:03]}  Nxa4 {[%clk 0:01:05]} 28. Bd4 {[%clk 0:02:03]}  Ke7 {[%clk 0:00:57]} 29. f4 {[%clk 0:02:01]}  Kd7 {[%clk 0:00:52]} 30. e3 {[%clk 0:01:59]}  Kc6 {[%clk 0:00:50]} 31. e6 {[%clk 0:01:59]}  Kd6 {[%clk 0:00:41]} 32. Bf3 {[%clk 0:01:54]}  Kxe6 {[%clk 0:00:37]} 33. Bd1 {[%clk 0:01:53]}  Bc6 {[%clk 0:00:36]} 34. Bxg7 {[%clk 0:01:51]}  Nb6 {[%clk 0:00:34]} 35. Bd4 {[%clk 0:01:52]}  Nc4 {[%clk 0:00:34]} 36. Kf2 {[%clk 0:01:52]}  Nd2 {[%clk 0:00:32]} 37. Ke2 {[%clk 0:01:50]}  Nc4 {[%clk 0:00:28]} 38. h3 {[%clk 0:01:49]}  Bb5 {[%clk 0:00:28]} 39. Kf3 {[%clk 0:01:48]}  Nd2+ {[%clk 0:00:27]} 40. Kg2 {[%clk 0:01:48]}  Ne4 {[%clk 0:00:23]} 41. g4 {[%clk 0:01:44]}  Bd3 {[%clk 0:00:21]} 42. g5 {[%clk 0:01:34]}  Nd2 {[%clk 0:00:15]} 43. h4 {[%clk 0:01:33]}  Kf7 {[%clk 0:00:12]} 44. h5 {[%clk 0:01:33]}  Ne4 {[%clk 0:00:10]} 45. Bb3 {[%clk 0:01:32]}  Bc4 {[%clk 0:00:07]} 46. Ba4 {[%clk 0:01:30]}  Nd2 {[%clk 0:00:06]} 47. Bd7 {[%clk 0:01:29]}  Bd3 {[%clk 0:00:02]} 48. Kf2 {[%clk 0:01:23]}  Be4 {[%clk 0:00:02]} 49. Ke2 {[%clk 0:01:21]}  Nf3 {[%clk 0:00:02]} 50. Bf6 {[%clk 0:01:20]}  Nh4 {[%clk 0:00:01]} 51. Kf2 {[%clk 0:01:18]}  Nf3 {[%clk 0:00:01]} 52. Bc3 {[%clk 0:01:17]}  Nd2 {[%clk 0:00:02]} 53. Bxd2 {[%clk 0:01:16]}  Ke7 {[%clk 0:00:02]} 54. Ba4 {[%clk 0:01:15]}  Kf7 {[%clk 0:00:03]} 55. Bc3 {[%clk 0:01:15]}  Ke7 {[%clk 0:00:04]} 56. Be5 {[%clk 0:01:16]}  Kf7 {[%clk 0:00:04]} 57. Bb3 {[%clk 0:01:15]} 1-0


[Site "https://www.chess.com"]

[Event "Titled Tuesday Blitz April 19 Early 2022"]
[White "Nugumanov, Bakhtiyar"]
[Black "Kaiyrbekov, Rustam"]
[WhiteFideId "13701797"]
[BlackFideId "13702424"]
[WhiteElo "2262"]
[BlackElo "2134"]
[Result "1-0"]
[Round "08"]
[TimeControl "180+1"]
[Date "2022.04.19"]
[WhiteClock "0:00:14"]
[BlackClock "0:00:12"]

1. Nf3 {[%clk 0:02:55]}  d5 {[%clk 0:02:59]} 2. g3 {[%clk 0:02:54]}  c6 {[%clk 0:02:51]} 3. Bg2 {[%clk 0:02:53]}  Nd7 {[%clk 0:02:49]} 4. d4 {[%clk 0:02:47]}  Ngf6 {[%clk 0:02:47]} 5. O-O {[%clk 0:02:43]}  g6 {[%clk 0:02:46]} 6. b3 {[%clk 0:02:39]}  Bg7 {[%clk 0:02:45]} 7. Bb2 {[%clk 0:02:39]}  O-O {[%clk 0:02:44]} 8. c4 {[%clk 0:02:38]}  e5 {[%clk 0:02:36]} 9. Nxe5 {[%clk 0:02:28]}  Nxe5 {[%clk 0:02:34]} 10. dxe5 {[%clk 0:02:29]}  Ng4 {[%clk 0:02:35]} 11. cxd5 {[%clk 0:02:24]}  Nxe5 {[%clk 0:02:29]} 12. Kh1 {[%clk 0:02:21]}  Ng4 {[%clk 0:01:27]} 13. Bxg7 {[%clk 0:02:12]}  Kxg7 {[%clk 0:01:28]} 14. Nc3 {[%clk 0:01:58]}  Qf6 {[%clk 0:01:24]} 15. Ne4 {[%clk 0:01:53]}  Qe5 {[%clk 0:01:06]} 16. dxc6 {[%clk 0:01:53]}  bxc6 {[%clk 0:01:04]} 17. Qd6 {[%clk 0:01:37]}  Nxf2+ {[%clk 0:00:58]} 18. Kg1 {[%clk 0:00:37]}  Qxd6 {[%clk 0:00:57]} 19. Nxd6 {[%clk 0:00:36]}  Ng4 {[%clk 0:00:55]} 20. Bxc6 {[%clk 0:00:37]}  Rb8 {[%clk 0:00:43]} 21. Rf4 {[%clk 0:00:32]}  Ne5 {[%clk 0:00:41]} 22. Bg2 {[%clk 0:00:25]}  Be6 {[%clk 0:00:38]} 23. Rc1 {[%clk 0:00:20]}  Rbd8 {[%clk 0:00:37]} 24. Nb5 {[%clk 0:00:18]}  a6 {[%clk 0:00:36]} 25. Nc7 {[%clk 0:00:18]}  Bc8 {[%clk 0:00:30]} 26. Re4 {[%clk 0:00:12]}  Ng4 {[%clk 0:00:30]} 27. h3 {[%clk 0:00:12]}  Nf6 {[%clk 0:00:29]} 28. Ra4 {[%clk 0:00:12]}  Rd7 {[%clk 0:00:27]} 29. Nxa6 {[%clk 0:00:11]}  Ra7 {[%clk 0:00:26]} 30. Nc5 {[%clk 0:00:11]}  Rc7 {[%clk 0:00:23]} 31. Rac4 {[%clk 0:00:11]}  Re8 {[%clk 0:00:13]} 32. Ne6+ {[%clk 0:00:11]}  Bxe6 {[%clk 0:00:12]} 33. Rxc7 {[%clk 0:00:12]}  Nd5 {[%clk 0:00:11]} 34. R7c5 {[%clk 0:00:11]}  Ne3 {[%clk 0:00:12]} 35. Kh2 {[%clk 0:00:11]}  Nxg2 {[%clk 0:00:11]} 36. Kxg2 {[%clk 0:00:11]}  Bf5 {[%clk 0:00:11]} 37. g4 {[%clk 0:00:10]}  Rxe2+ {[%clk 0:00:08]} 38. Kf3 {[%clk 0:00:09]}  Bd3 {[%clk 0:00:09]} 39. R1c3 {[%clk 0:00:09]}  Ba6 {[%clk 0:00:07]} 40. a4 {[%clk 0:00:09]}  Rh2 {[%clk 0:00:07]} 41. Kg3 {[%clk 0:00:09]}  Re2 {[%clk 0:00:06]} 42. b4 {[%clk 0:00:09]}  Re7 {[%clk 0:00:06]} 43. b5 {[%clk 0:00:09]}  Bc8 {[%clk 0:00:05]} 44. a5 {[%clk 0:00:09]}  Be6 {[%clk 0:00:05]} 45. b6 {[%clk 0:00:09]}  Rb7 {[%clk 0:00:05]} 46. Rc7 {[%clk 0:00:09]}  Rxc7 {[%clk 0:00:05]} 47. bxc7 {[%clk 0:00:08]}  Bc8 {[%clk 0:00:05]} 48. Rd3 {[%clk 0:00:07]}  f5 {[%clk 0:00:05]} 49. Rd8 {[%clk 0:00:08]}  Ba6 {[%clk 0:00:05]} 50. c8=Q {[%clk 0:00:08]}  Bxc8 {[%clk 0:00:06]} 51. Rxc8 {[%clk 0:00:09]}  fxg4 {[%clk 0:00:06]} 52. a6 {[%clk 0:00:09]}  gxh3 {[%clk 0:00:06]} 53. Kxh3 {[%clk 0:00:10]}  h5 {[%clk 0:00:06]} 54. a7 {[%clk 0:00:11]}  g5 {[%clk 0:00:07]} 55. a8=Q {[%clk 0:00:12]}  g4+ {[%clk 0:00:08]} 56. Kh4 {[%clk 0:00:11]}  g3 {[%clk 0:00:08]} 57. Qb7+ {[%clk 0:00:12]}  Kf6 {[%clk 0:00:09]} 58. Rc6+ {[%clk 0:00:13]}  Ke5 {[%clk 0:00:10]} 59. Qb5+ {[%clk 0:00:13]}  Kf4 {[%clk 0:00:10]} 60. Rc4+ {[%clk 0:00:14]}  Kf3 {[%clk 0:00:10]} 61. Qb3+ {[%clk 0:00:14]}  Kg2 {[%clk 0:00:11]} 62. Rc2+ {[%clk 0:00:14]}  Kh1 {[%clk 0:00:12]} 63. Qb1# {[%clk 0:00:14]} 1-0


[Site "https://www.chess.com"]